bitfinex-derivatives/quotes_BTCF0:USTF0_20240815
["timestamp","ask_amount","ask_price","bid_price","bid_amount"]
[1723749450777,0.0001972,57355.0,57354.0,0.087165]
[1723749450977,0.0001972,57355.0,57354.0,0.14]
[1723749451188,0.0001972,57355.0,57342.0,0.087182]
[1723749451189,0.087172,57350.0,57342.0,0.087182]
[1723749451371,0.0001972,57355.0,57342.0,0.237182]
[1723749451372,0.3608,57352.0,57342.0,0.237182]
[1723749451575,0.3608,57352.0,57342.0,0.15865187]
[1723749451973,0.0001972,57355.0,57342.0,0.15865187]
[1723749451974,0.0001972,57355.0,57351.0,0.087169]
[1723749452280,0.0001972,57355.0,57351.0,0.257169]
[1723749452484,0.0001972,57355.0,57351.0,0.17]
[1723749452685,0.0001972,57355.0,57342.0,0.01616822]
[1723749452876,0.087168,57352.0,57345.0,0.087177]
[1723749453076,0.087168,57352.0,57345.0,0.14]
[1723749453280,0.087168,57352.0,57341.0,0.36822176]
[1723749453281,0.447968,57352.0,57341.0,0.36822176]
[1723749453586,0.447968,57352.0,57341.0,0.52822176]
[1723749453977,0.3608,57346.0,57341.0,0.16742176]
[1723749454173,0.3608,57346.0,57333.0,0.447996]
[1723749454383,0.3608,57346.0,57333.0,0.5308]
[1723749454584,0.3608,57346.0,57333.0,0.53929779]
[1723749454882,0.00026144,57345.0,57333.0,0.53929779]
[1723749455278,0.00026144,57345.0,57337.0,0.087189]
[1723749455582,0.087189,57338.0,57337.0,0.16]
[1723749455794,0.00012668,57338.0,57333.0,0.37676869]
[1723749456083,0.00012668,57338.0,57333.0,0.52676869]
[1723749456784,0.087191,57337.0,57333.0,0.52676869]
[1723749457376,0.00012668,57338.0,57333.0,0.16604869]
[1723749457576,0.3608,57334.0,57330.0,0.00723433]
[1723749457783,0.3608,57334.0,57322.0,0.087213]
[1723749458083,0.00012668,57338.0,57322.0,0.087213]
[1723749458084,0.087192,57337.0,57322.0,3.92]
[1723749458274,0.087193,57336.0,57322.0,3.92]
[1723749458481,0.08745744,57334.0,57322.0,3.92873505]
[1723749458693,0.08745744,57334.0,57328.0,0.087203]
[1723749458877,0.08745744,57334.0,57329.0,0.087203]
[1723749459080,0.00026144,57334.0,57333.0,0.087197]
[1723749459281,0.00026144,57334.0,57333.0,0.247197]
[1723749459476,0.00026144,57334.0,57333.0,0.16]
[1723749459880,0.00026144,57334.0,57320.0,0.5869]
[1723749460080,0.087208,57326.0,57322.0,0.17873505]
[1723749460282,0.087209,57325.0,57320.0,0.448016]
[1723749460592,0.087206,57328.0,57322.0,0.087213]
[1723749460885,0.087211,57324.0,57321.0,0.00014467]
[1723749461083,0.448014,57322.0,57321.0,0.00014467]
[1723749461885,0.535228,57322.0,57321.0,0.00014467]
[1723749462089,1.28416,57322.0,57309.0,0.0073775]
[1723749462283,0.3608,57314.0,57306.0,0.3608]
[1723749462484,0.087236,57307.0,57306.0,0.3608]
[1723749462784,0.087236,57307.0,57301.0,0.087245]
[1723749462785,0.08724,57305.0,57301.0,0.087245]
[1723749462987,0.00020344,57304.0,57301.0,0.14]
[1723749463287,0.00020344,57304.0,57297.0,0.08725]
[1723749463288,0.448044,57302.0,57286.0,0.5869]
[1723749463591,0.087251,57298.0,57293.0,0.0072414]
[1723749463891,0.00020344,57304.0,57293.0,0.0072414]
[1723749463892,0.087243,57303.0,57293.0,0.0072414]
[1723749464093,0.00020344,57304.0,57293.0,0.0072414]
[1723749464094,0.00020344,57304.0,57302.0,0.087243]
[1723749464390,0.00020344,57304.0,57303.0,0.087242]
[1723749464782,0.00020344,57304.0,57303.0,0.448042]
[1723749465180,0.00020344,57304.0,57303.0,0.087242]
[1723749465487,0.00020344,57304.0,57300.0,0.2261]
[1723749465683,0.00020344,57304.0,57293.0,0.00888066]
[1723749465988,0.00020344,57304.0,57291.0,0.3608]
[1723749465989,0.36100344,57304.0,57291.0,0.3608]
[1723749466190,0.36100344,57304.0,57291.0,0.36954539]
[1723749466488,0.36100344,57304.0,57293.0,0.2261]
[1723749466687,0.087272,57284.0,57279.0,0.3608]
[1723749466894,0.3608,57297.0,57281.0,0.087276]
[1723749467083,0.087266,57288.0,57281.0,0.087276]
[1723749467391,0.3608,57292.0,57279.0,0.3608]
[1723749467590,0.087263,57290.0,57284.0,0.087271]
[1723749467780,0.3608,57292.0,57279.0,0.3608]
[1723749467781,0.00016033,57289.0,57279.0,0.3608]
[1723749467983,0.3608,57286.0,57279.0,0.3608]
[1723749468296,0.3608,57286.0,57278.0,0.08728]
[1723749468297,0.08727,57285.0,57278.0,0.08728]
[1723749468491,0.3608,57286.0,57285.0,0.08727]
[1723749468882,0.3608,57286.0,57276.0,0.36099171]
[1723749469082,0.00016033,57289.0,57281.0,0.087275]
[1723749469287,0.00016033,57289.0,57276.0,0.36099171]
[1723749469288,0.087275,57282.0,57276.0,0.36099171]
[1723749469485,0.087275,57282.0,57276.0,0.00019171]
[1723749469684,0.087275,57282.0,57276.0,0.00011171]
[1723749469883,0.3608,57285.0,57276.0,0.00011171]
[1723749470484,0.3608,57279.0,57276.0,0.00011171]
[1723749470685,0.087282,57277.0,57276.0,0.00011171]
[1723749471592,0.0002174,57278.0,57276.0,0.00011171]
[1723749472092,0.0002174,57278.0,57277.0,3.857282]
[1723749472683,0.00026166,57282.0,57281.0,0.087276]
[1723749472885,0.3608,57291.0,57290.0,0.087262]
[1723749473188,0.3608,57291.0,57290.0,0.247262]
[1723749473687,0.3608,57291.0,57290.0,4.017262]
[1723749473893,0.3608,57291.0,57290.0,0.247262]
[1723749474200,0.448061,57291.0,57290.0,0.16]
[1723749474401,0.3608,57291.0,57290.0,0.16]
[1723749475195,0.3608,57291.0,57285.0,0.00026166]
[1723749475584,0.3608,57291.0,57285.0,0.08753166]
[1723749475784,0.087262,57290.0,57285.0,0.16026166]
[1723749475997,0.087266,57288.0,57285.0,0.16026166]
[1723749476183,0.3608,57291.0,57285.0,0.16026166]
[1723749476481,0.448061,57291.0,57285.0,0.16026166]
[1723749476684,0.448068,57286.0,57285.0,0.00026166]
[1723749476886,0.448068,57286.0,57262.0,0.05171048]
[1723749476887,0.08728,57279.0,57273.0,0.087287]
[1723749477098,0.448082,57277.0,57269.0,0.087294]
[1723749477292,0.448082,57277.0,57271.0,0.00788342]
[1723749477792,0.448082,57277.0,57270.0,0.087292]
[1723749478092,0.448082,57277.0,57265.0,0.3931]
[1723749478093,0.3608,57277.0,57267.0,0.0075362]
[1723749478297,0.3608,57277.0,57276.0,0.08739571]
[1723749478793,0.00026166,57282.0,57276.0,0.23739471]
[1723749478992,0.08753766,57282.0,57276.0,0.08739471]
[1723749479186,0.00026166,57282.0,57276.0,0.14011171]
[1723749479386,0.087278,57280.0,57276.0,0.14011171]
[1723749479600,0.3608,57281.0,57276.0,0.14011171]
[1723749479787,0.00026166,57282.0,57278.0,0.08728]
[1723749480200,0.00026166,57282.0,57278.0,0.15]
[1723749480504,0.74986,57281.0,57259.0,0.06038246]
[1723749480703,0.087308,57260.0,57259.0,0.15867198]
[1723749480992,0.08731,57259.0,57248.0,0.00889688]
[1723749481193,0.08731,57259.0,57250.0,0.087322]
[1723749481194,0.087312,57258.0,57250.0,0.087322]
[1723749481393,0.3608,57259.0,57248.0,0.00891608]
[1723749481700,0.00013464,57258.0,57248.0,0.16]
[1723749481893,0.00013464,57258.0,57245.0,0.3772858]
[1723749482196,0.00013464,57258.0,57257.0,0.087313]
[1723749482400,0.00013464,57258.0,57245.0,0.6033858]
[1723749482598,0.00013464,57258.0,57245.0,0.7433858]
[1723749482894,0.00013464,57258.0,57257.0,0.087313]
[1723749483098,0.0002619,57259.0,57258.0,0.087311]
[1723749483293,0.0002619,57259.0,57258.0,0.997371]
[1723749483491,0.0002619,57259.0,57254.0,0.087317]
[1723749483492,0.3608,57249.0,57239.0,0.05166228]
[1723749483693,0.3608,57249.0,57226.0,0.00874137]
[1723749483694,0.5869,57240.0,57226.0,0.00874137]
[1723749483886,0.3608,57227.0,57226.0,0.00874137]
[1723749484085,0.3608,57230.0,57225.0,0.00777187]
[1723749484287,0.3608,57230.0,57211.0,0.387]
[1723749484288,0.087362,57225.0,57211.0,0.087383]
[1723749484492,0.3608,57226.0,57211.0,0.15639296]
[1723749484790,0.3608,57226.0,57225.0,3.77]
[1723749484791,0.59286672,57226.0,57225.0,3.77]
[1723749484992,0.68022672,57226.0,57225.0,3.77]
[1723749485197,0.087374,57218.0,57203.0,0.00879551]
[1723749485395,0.3608,57206.0,57196.0,0.00783931]
[1723749485696,0.3608,57206.0,57196.0,0.16]
[1723749485902,0.59286672,57206.0,57200.0,0.087399]
[1723749486197,0.00013561,57217.0,57205.0,4.1308]
[1723749486401,0.00013561,57217.0,57211.0,0.3608]
[1723749486603,0.00013561,57217.0,57215.0,0.087376]
[1723749487102,0.00013561,57217.0,57216.0,0.52432]
[1723749487399,0.00013561,57217.0,57215.0,0.09520682]
[1723749487797,0.00013561,57217.0,57216.0,3.77]
[1723749487997,0.00013561,57217.0,57216.0,4.29432]
[1723749488201,0.3608,57232.0,57217.0,0.52432]
[1723749488393,0.3528,57232.0,57230.0,0.087353]
[1723749488594,0.3608,57251.0,57230.0,0.5108]
[1723749489093,0.23206672,57251.0,57239.0,0.087339]
[1723749489298,0.3608,57245.0,57235.0,0.3608]
[1723749489495,0.087344,57237.0,57235.0,0.3608]
[1723749489689,0.087359,57227.0,57217.0,0.36839748]
[1723749489891,0.3608,57228.0,57223.0,0.087364]
[1723749490094,0.59286672,57228.0,57219.0,0.08737]
[1723749490294,0.59286672,57228.0,57220.0,0.087368]
[1723749490694,0.59286672,57228.0,57221.0,0.087367]
[1723749490891,0.59286672,57228.0,57217.0,0.36839748]
[1723749491096,0.23206672,57228.0,57222.0,0.087366]
[1723749491401,0.23206672,57228.0,57217.0,0.36839748]
[1723749491602,0.31942372,57228.0,57217.0,0.3608]
[1723749491792,0.00026213,57231.0,57225.0,0.3608]
[1723749492104,0.3608,57247.0,57245.0,0.08733]
[1723749492306,0.3608,57247.0,57230.0,0.3608]
[1723749492506,0.087346,57236.0,57225.0,0.087361]
[1723749492800,0.087339,57240.0,57225.0,0.00775737]
[1723749493007,0.087342,57238.0,57228.0,0.087356]
[1723749493191,0.087343,57237.0,57231.0,0.3608]
[1723749493603,0.3608,57234.0,57227.0,0.00026213]
[1723749493906,0.31940972,57237.0,57236.0,0.087345]
[1723749493907,0.23206672,57237.0,57236.0,0.087345]
[1723749494205,0.23206672,57237.0,57227.0,0.36106213]
[1723749494403,0.23206672,57237.0,57232.0,0.087351]
[1723749494599,0.23206672,57237.0,57228.0,3.77]
[1723749494800,0.3608,57252.0,57232.0,0.3608]
[1723749495003,0.3608,57252.0,57245.0,0.3608]
[1723749495004,0.23206672,57252.0,57245.0,0.3608]
[1723749495203,0.23206672,57252.0,57245.0,0.5308]
[1723749495497,0.23206672,57252.0,57248.0,0.087326]
[1723749495691,0.23206672,57252.0,57245.0,0.3608]
[1723749495895,0.23206672,57252.0,57245.0,0.5308]
[1723749496092,0.23206672,57252.0,57251.0,0.087322]
[1723749496304,0.00244001,57264.0,57251.0,0.15]
[1723749496508,0.3608,57279.0,57255.0,0.3608]
[1723749496705,0.57486672,57279.0,57271.0,0.08729]
[1723749497002,0.087281,57278.0,57272.0,3.77]
[1723749497204,0.57486672,57279.0,57272.0,3.857289]
[1723749497397,0.57486672,57279.0,57273.0,0.087287]
[1723749497599,0.57486672,57279.0,57273.0,0.15]
[1723749497795,0.57486672,57279.0,57272.0,3.77]
[1723749497796,0.087282,57277.0,57272.0,3.77]
[1723749498103,0.3608,57278.0,57272.0,3.77]
[1723749498493,0.087288,57273.0,57272.0,3.77]
[1723749498698,0.087288,57273.0,57269.0,1e-08]
[1723749498699,0.087293,57270.0,57269.0,1e-08]
[1723749499102,0.30135972,57270.0,57269.0,1e-08]
[1723749499907,0.30119972,57270.0,57269.0,1e-08]
[1723749500407,0.21406672,57270.0,57269.0,1e-08]
[1723749500596,0.3608,57273.0,57269.0,1e-08]
[1723749500794,0.57486672,57273.0,57272.0,0.08729]
[1723749501003,0.57486672,57273.0,57269.0,1e-08]
[1723749501403,0.174586,57270.0,57269.0,1e-08]
[1723749501603,0.087317,57255.0,57244.0,0.3608]
[1723749501795,0.3608,57258.0,57245.0,3.77]
[1723749502000,0.3608,57258.0,57257.0,0.087313]
[1723749502197,0.3608,57258.0,57245.0,0.00874553]
[1723749502198,0.21406671,57258.0,57245.0,0.00874553]
[1723749502402,0.21406671,57258.0,57245.0,0.16874553]
[1723749502598,0.3608,57257.0,57244.0,4.1308]
[1723749502913,0.21406671,57257.0,57244.0,4.1308]
[1723749503094,0.087319,57254.0,57244.0,4.1308]
[1723749503299,0.21406671,57257.0,57246.0,0.08758988]
[1723749503300,0.087319,57253.0,57246.0,0.08758988]
[1723749503697,0.21406671,57253.0,57246.0,0.00026188]
[1723749504108,0.087328,57247.0,57246.0,0.00026188]
[1723749504498,0.30139471,57247.0,57246.0,0.00026188]
[1723749504698,0.21406671,57247.0,57246.0,0.00026188]
[1723749504902,0.21406671,57247.0,57246.0,0.08759088]
[1723749505107,0.21406671,57247.0,57246.0,0.24759088]
[1723749505304,0.00026188,57257.0,57246.0,0.16026188]
[1723749505601,0.21432859,57257.0,57247.0,0.3608]
[1723749505805,0.21432859,57257.0,57246.0,0.16026188]
[1723749505806,0.087316,57255.0,57246.0,0.08759088]
[1723749505999,0.21432859,57257.0,57246.0,0.17026188]
[1723749506402,0.087314,57256.0,57248.0,0.087326]
[1723749506603,0.087314,57256.0,57248.0,0.247326]
[1723749506902,0.087314,57256.0,57246.0,0.23026188]
[1723749506903,0.00026188,57257.0,57246.0,0.00026188]
[1723749507099,0.00026188,57257.0,57247.0,0.087328]
[1723749507100,0.087317,57254.0,57247.0,0.087328]
[1723749507501,0.087317,57254.0,57246.0,0.00026188]
[1723749507502,0.57486671,57254.0,57246.0,0.00026188]
[1723749507708,0.3608,57247.0,57246.0,0.00026188]
[1723749507907,0.3608,57247.0,57246.0,0.08759088]
[1723749508311,0.3608,57247.0,57246.0,0.25759088]
[1723749508702,0.57486671,57247.0,57246.0,0.00026188]
[1723749509108,0.3608,57247.0,57228.0,0.05192203]
[1723749509305,0.3608,57247.0,57203.0,0.3608]
[1723749509306,0.7216,57229.0,57210.0,0.00786299]
[1723749509605,0.7216,57229.0,57203.0,0.3608]
[1723749509606,0.3608,57219.0,57208.0,0.3608]
[1723749510006,0.52277392,57219.0,57213.0,0.087379]
[1723749510206,0.00014083,57218.0,57208.0,0.3608]
[1723749510398,0.00014083,57218.0,57209.0,0.087386]
[1723749510603,0.16211475,57218.0,57208.0,0.36106215]
[1723749510808,0.16211475,57218.0,57212.0,0.08738]
[1723749511210,0.16211475,57218.0,57214.0,0.087377]
[1723749512016,0.16211475,57218.0,57208.0,0.37306215]
[1723749512206,0.3608,57232.0,57217.0,0.3608]
[1723749512404,0.3608,57232.0,57231.0,0.087352]
[1723749512609,0.16985313,57240.0,57232.0,0.08735]
[1723749512610,0.00787921,57240.0,57232.0,0.08735]
[1723749512813,0.00787921,57240.0,57239.0,0.08734]
[1723749512814,0.16197392,57240.0,57239.0,0.08734]
[1723749513916,0.00026215,57245.0,57239.0,0.08734]
[1723749513917,0.00026215,57245.0,57244.0,0.087332]
[1723749514304,0.00026215,57245.0,57239.0,0.08734]
[1723749514612,0.00026215,57245.0,57240.0,3.77]
[1723749514811,0.00026215,57245.0,57243.0,0.087334]
[1723749515023,0.00026215,57245.0,57244.0,0.087332]
[1723749515311,0.3608,57260.0,57251.0,0.087322]
[1723749515517,0.3608,57271.0,57251.0,0.16]
[1723749515708,0.52277392,57271.0,57267.0,0.087297]
[1723749515906,0.52277392,57271.0,57261.0,0.3608]
[1723749515907,0.16197392,57271.0,57261.0,0.3608]
[1723749516221,0.16197392,57271.0,57261.0,0.5008]
[1723749516519,0.16197392,57271.0,57268.0,0.087296]
[1723749516716,0.16197392,57271.0,57269.0,0.087294]
[1723749516921,0.17397392,57271.0,57269.0,0.087294]
[1723749517214,0.17397392,57271.0,57267.0,0.001]
[1723749517215,0.012,57271.0,57267.0,0.001]
[1723749517417,0.54277392,57271.0,57267.0,0.001]
[1723749517815,0.62206692,57271.0,57267.0,0.001]
[1723749518118,0.27426692,57271.0,57269.0,0.001]
[1723749518315,0.18697392,57271.0,57269.0,0.001]
[1723749518507,0.025,57271.0,57269.0,0.001]
[1723749518715,0.025,57271.0,57270.0,0.087293]
[1723749518716,0.026,57271.0,57270.0,0.087293]
[1723749518905,0.026,57271.0,57269.0,0.001]
[1723749519220,0.18797392,57271.0,57269.0,0.001]
[1723749519516,0.087293,57270.0,57269.0,0.001]
[1723749519715,0.18397392,57271.0,57269.0,0.001]
[1723749520821,0.18397392,57271.0,57269.0,0.002]
[1723749522320,0.013,57270.0,57269.0,0.002]
[1723749522712,0.17497392,57270.0,57269.0,0.002]
[1723749523218,0.77310692,57270.0,57269.0,0.002]
[1723749524025,0.79710692,57270.0,57269.0,0.002]
[1723749525011,0.024,57270.0,57259.0,0.20108823]
[1723749525221,0.024,57270.0,57254.0,0.087317]
[1723749525222,0.3608,57264.0,57254.0,0.087317]
[1723749525411,0.3608,57264.0,57241.0,0.087336]
[1723749525412,0.3608,57259.0,57241.0,0.24448]
[1723749525614,0.3608,57251.0,57246.0,0.087328]
[1723749525813,0.3608,57251.0,57246.0,0.14]
[1723749526016,0.448114,57257.0,57253.0,0.087318]
[1723749526820,0.087316,57255.0,57249.0,0.087325]
[1723749527026,0.3608,57257.0,57249.0,0.087325]
[1723749527027,0.001,57251.0,57249.0,0.087323]
[1723749527320,0.001,57251.0,57250.0,0.087323]
[1723749527711,0.001,57251.0,57250.0,0.838646]
[1723749527912,0.008,57257.0,57256.0,0.087314]
[1723749528114,0.008,57257.0,57256.0,0.598114]
[1723749528315,0.00026192,57261.0,57260.0,0.087308]
[1723749528518,0.00026192,57261.0,57260.0,4.017308]
[1723749529517,0.3608,57278.0,57260.0,4.85492]
[1723749529714,0.3608,57283.0,57271.0,0.087291]
[1723749529922,0.3608,57277.0,57272.0,0.087289]
[1723749530112,0.087279,57280.0,57272.0,0.257288]
[1723749530308,0.087279,57280.0,57272.0,0.17]
[1723749530509,0.448074,57283.0,57275.0,0.087285]
[1723749530713,0.00026192,57282.0,57270.0,0.00026192]
[1723749530910,0.087291,57271.0,57270.0,0.00026192]
[1723749531123,0.3608,57271.0,57270.0,0.00026192]
[1723749531325,0.3608,57278.0,57270.0,0.00026192]
[1723749531631,0.448091,57271.0,57270.0,0.00026192]
[1723749532330,1.28464,57271.0,57260.0,0.002]
[1723749532528,1.28464,57271.0,57244.0,0.00863403]
[1723749532529,0.006,57261.0,57244.0,0.00863403]
[1723749532823,0.087323,57251.0,57244.0,0.247331]
[1723749533134,0.3608,57262.0,57252.0,0.08732]
[1723749533510,0.087313,57257.0,57252.0,0.08732]
[1723749533713,0.00026192,57263.0,57254.0,0.087316]
[1723749533714,0.087308,57261.0,57254.0,0.087316]
[1723749533926,0.087308,57261.0,57256.0,0.087314]
[1723749534316,0.087308,57261.0,57257.0,0.087311]
[1723749534923,0.00026192,57263.0,57257.0,0.3608]
[1723749535227,0.3608,57272.0,57262.0,0.3608]
[1723749535414,0.3608,57272.0,57262.0,0.5108]
[1723749535614,0.3608,57272.0,57266.0,0.087298]
[1723749535920,0.448091,57272.0,57267.0,0.087297]
[1723749536221,0.3608,57272.0,57267.0,0.087297]
[1723749536424,0.44809,57272.0,57267.0,0.087297]
[1723749536615,0.3758,57272.0,57271.0,0.087291]
[1723749537017,0.3698,57272.0,57271.0,0.087291]
[1723749537326,0.3608,57293.0,57272.0,0.52376]
[1723749537619,0.3608,57293.0,57285.0,0.3608]
[1723749537920,0.3608,57293.0,57285.0,0.5108]
[1723749538317,0.3608,57293.0,57289.0,0.087262]
[1723749538519,0.3608,57293.0,57291.0,0.087261]
[1723749538920,0.3608,57293.0,57286.0,0.087268]
[1723749539118,0.3608,57293.0,57285.0,0.3608]
[1723749539325,0.3608,57293.0,57289.0,0.087264]
[1723749539531,0.3608,57293.0,57285.0,0.3608]
[1723749539717,0.3608,57286.0,57271.0,0.60628]
[1723749539917,0.087271,57284.0,57274.0,0.00621907]
[1723749540226,0.448068,57286.0,57285.0,0.001]
[1723749540622,0.971748,57286.0,57285.0,0.001]
[1723749541028,0.3608,57286.0,57285.0,0.001]
[1723749541218,0.3608,57286.0,57271.0,0.60528]
[1723749541219,0.3608,57286.0,57283.0,0.00126192]
[1723749541723,0.3608,57286.0,57283.0,0.00026192]
[1723749541931,0.3608,57286.0,57285.0,0.001]
[1723749542130,0.3658,57286.0,57285.0,0.002]
[1723749542322,0.453068,57286.0,57285.0,0.002]
[1723749542628,0.453068,57286.0,57271.0,0.44809]
[1723749542629,0.087278,57280.0,57271.0,0.44809]
[1723749542930,0.13864928,57280.0,57271.0,0.5208]
[1723749543228,0.05137128,57278.0,57271.0,0.5208]
[1723749543430,0.05137128,57279.0,57271.0,0.5208]
[1723749543626,0.0516332,57280.0,57279.0,0.087279]
[1723749543819,0.00026192,57280.0,57279.0,0.227279]
[1723749544928,0.05141992,57289.0,57288.0,0.087265]
[1723749545124,0.05141992,57294.0,57292.0,0.087259]
[1723749545323,0.05141992,57294.0,57292.0,0.227259]
[1723749545525,0.05141992,57295.0,57292.0,0.227259]
[1723749545822,0.04338716,57303.0,57295.0,0.087255]
[1723749546025,0.04338716,57305.0,57302.0,0.3608]
[1723749546221,0.06849504,57321.0,57304.0,0.3608]
[1723749546531,0.44558467,57326.0,57304.0,0.3608]
[1723749546532,0.3608,57326.0,57317.0,0.3608]
[1723749546722,0.3608,57326.0,57320.0,0.087216]
[1723749546924,0.3608,57326.0,57317.0,0.3608]
[1723749547241,0.16730794,57321.0,57317.0,0.20937908]
[1723749547438,0.11186135,57320.0,57317.0,0.20937908]
[1723749547626,0.11186135,57319.0,57317.0,0.20937908]
[1723749547941,0.11186135,57318.0,57317.0,0.20937908]
[1723749548234,0.11186135,57318.0,57317.0,0.29660008]
[1723749548938,0.11186135,57318.0,57317.0,0.20937908]
[1723749549231,0.11186135,57318.0,57317.0,0.44660008]
[1723749549422,0.18112738,57318.0,57317.0,0.44660008]
[1723749549625,0.02826497,57318.0,57317.0,1.37000008]
[1723749549830,0.11944954,57327.0,57325.0,0.087208]
[1723749549831,0.00026167,57327.0,57325.0,0.087208]
[1723749550030,0.00026167,57327.0,57326.0,0.448007]
[1723749550227,0.00026167,57327.0,57326.0,0.608007]
[1723749550624,0.00026167,57327.0,57319.0,0.24436]
[1723749550833,0.087221,57317.0,57316.0,1e-08]
[1723749551028,0.08723,57312.0,57305.0,0.3608]
[1723749551224,0.1970425,57311.0,57305.0,0.448038]
[1723749551422,0.3608,57321.0,57305.0,0.36693587]
[1723749551423,0.03366988,57310.0,57305.0,0.36693587]
[1723749551632,0.03366988,57309.0,57305.0,0.36693587]
[1723749551830,0.11876449,57316.0,57305.0,0.36693587]
[1723749552033,0.49901086,57321.0,57305.0,0.36693587]
[1723749552034,0.03368091,57315.0,57312.0,0.3608]
[1723749552339,0.00026167,57316.0,57314.0,0.3608]
[1723749552534,0.00026167,57316.0,57315.0,0.087224]
[1723749552834,0.10179442,57317.0,57314.0,0.3608]
[1723749553029,0.11867102,57328.0,57314.0,0.3608]
[1723749553228,0.08476659,57316.0,57306.0,3.77]
[1723749553428,0.08474858,57316.0,57315.0,0.7216]
[1723749553628,0.08474858,57317.0,57315.0,0.7216]
[1723749553835,0.04040555,57319.0,57315.0,1.815]
[1723749554038,0.10172008,57325.0,57320.0,0.087215]
[1723749554332,0.00026167,57328.0,57324.0,0.3608]
[1723749554539,0.087209,57325.0,57324.0,0.3608]
[1723749554740,0.12088158,57325.0,57324.0,0.7216]
[1723749555234,0.087209,57325.0,57324.0,0.7216]
[1723749555726,0.087209,57325.0,57324.0,0.7226]
[1723749555932,0.087209,57325.0,57324.0,0.7236]
[1723749556633,0.00026167,57328.0,57324.0,0.7236]
[1723749556830,0.00026167,57328.0,57327.0,0.087206]
[1723749557031,0.00026167,57328.0,57327.0,0.247206]
[1723749557936,0.00026167,57328.0,57327.0,0.249206]
[1723749558234,0.00026167,57328.0,57327.0,1.172526]
[1723749558537,0.00026167,57328.0,57327.0,0.649206]
[1723749558538,1e-08,57328.0,57327.0,0.649206]
[1723749558836,0.087178,57346.0,57336.0,0.087192]
[1723749559033,0.087178,57346.0,57345.0,0.3608]
[1723749559334,0.00604461,57355.0,57345.0,0.3608]
[1723749559335,0.06774637,57350.0,57345.0,0.3608]
[1723749559531,0.06774637,57354.0,57348.0,0.3608]
[1723749559731,0.087165,57354.0,57353.0,0.3608]
[1723749560240,1.09741,57354.0,57353.0,0.3608]
[1723749560734,0.087172,57349.0,57345.0,1e-08]
[1723749560938,0.087172,57349.0,57340.0,0.3608]
[1723749560939,0.087185,57341.0,57340.0,0.3608]
[1723749561136,0.00615868,57354.0,57343.0,0.087181]
[1723749561336,0.087176,57347.0,57344.0,0.08718]
[1723749561533,0.00026167,57357.0,57346.0,0.447977]
[1723749561740,0.087165,57354.0,57353.0,0.001]
[1723749562135,1.09741,57354.0,57353.0,0.001]
[1723749562339,0.087176,57347.0,57346.0,0.03073581]
[1723749562527,0.087176,57347.0,57330.0,0.3608]
[1723749562528,0.52468149,57347.0,57330.0,0.3608]
[1723749562734,0.52312,57353.0,57325.0,0.087208]
[1723749562735,0.087204,57329.0,57325.0,0.087208]
[1723749563041,0.087209,57325.0,57323.0,0.3608]
[1723749563243,0.29371226,57324.0,57316.0,0.3608]
[1723749563436,0.29371226,57323.0,57322.0,0.087214]
[1723749563638,0.29371226,57323.0,57322.0,0.257214]
[1723749564337,0.20132981,57323.0,57322.0,0.257214]
[1723749564541,0.20132981,57323.0,57322.0,1.541374]
[1723749565043,0.20132981,57323.0,57322.0,1.55769736]
[1723749565226,0.00026167,57326.0,57325.0,0.087209]
[1723749565432,0.27141233,57326.0,57325.0,0.20016282]
[1723749565626,0.19262181,57326.0,57325.0,0.72348282]
[1723749565828,0.18867181,57334.0,57328.0,0.087204]
[1723749566045,0.22360329,57333.0,57332.0,0.087198]
[1723749566336,0.22360329,57333.0,57332.0,1.101916]
[1723749566536,0.15868029,57333.0,57332.0,1.501916]
[1723749566746,0.14268029,57333.0,57332.0,1.501916]
[1723749566936,0.11007029,57333.0,57332.0,1.501916]
[1723749567327,0.11007029,57333.0,57332.0,1.014718]
[1723749567531,0.11007029,57333.0,57332.0,5.271916]
[1723749567735,0.09407029,57333.0,57332.0,5.632716]
[1723749568136,0.05838029,57333.0,57332.0,5.632716]
[1723749568328,0.0715064,57349.0,57348.0,0.087174]
[1723749568531,0.0715064,57349.0,57348.0,0.247174]
[1723749568734,0.0715064,57349.0,57346.0,0.23]
[1723749568735,0.0715064,57349.0,57344.0,0.08718]
[1723749568940,0.0715064,57348.0,57346.0,0.087176]
[1723749569238,0.3608,57351.0,57338.0,3.77]
[1723749569239,0.0715064,57347.0,57338.0,3.77]
[1723749569431,0.0715064,57346.0,57345.0,0.087179]
[1723749569633,0.4323064,57346.0,57345.0,0.087179]
[1723749570330,0.3608,57346.0,57345.0,0.087179]
[1723749570839,0.3608,57346.0,57345.0,0.089179]
[1723749571240,0.3608,57346.0,57345.0,0.087179]
[1723749571544,0.3608,57346.0,57341.0,0.00026167]
[1723749571738,0.3608,57346.0,57341.0,0.14641931]
[1723749571934,0.3608,57346.0,57341.0,0.14026167]
[1723749572136,0.3608,57346.0,57326.0,0.3608]
[1723749572137,0.3608,57343.0,57326.0,0.3608]
[1723749572340,0.3608,57333.0,57326.0,0.17609883]
[1723749572647,0.3608,57328.0,57326.0,0.17609883]
[1723749573333,0.3608,57328.0,57327.0,0.087206]
[1723749573534,0.36106167,57333.0,57328.0,0.087204]
[1723749573738,0.36106167,57333.0,57328.0,0.17]
[1723749574334,0.00026167,57333.0,57332.0,0.087198]
[1723749574530,0.00026167,57333.0,57332.0,0.227198]
[1723749575137,0.00026167,57333.0,57332.0,0.14]
[1723749575138,0.36106167,57333.0,57332.0,0.14]
[1723749575648,0.00026167,57333.0,57332.0,0.14]
[1723749576036,0.00026167,57333.0,57328.0,0.006]
[1723749576236,0.448003,57329.0,57328.0,0.006]
[1723749576437,0.3608,57329.0,57328.0,0.00615069]
[1723749576745,0.448003,57329.0,57321.0,0.00026167]
[1723749576944,0.3608,57322.0,57321.0,0.15026167]
[1723749577144,0.448014,57322.0,57321.0,0.00026167]